bitfinex/quotes_ETHUSD_20220213
["timestamp","ask_amount","ask_price","bid_price","bid_amount"]
[1644780078029,0.01143666,2868.9,2868.6,2.74545115]
[1644780078232,0.01143666,2868.9,2868.8,1.74285]
[1644780078484,0.0174467,2869.1,2868.8,1.74285]
[1644780078685,0.0077439,2869.0,2868.9,0.8713]
[1644780078882,0.0077439,2869.0,2868.9,1.4713]
[1644780079483,0.0077439,2869.0,2868.9,2.34259]
[1644780079683,0.0174467,2869.1,2868.9,2.34259]
[1644780080083,0.0251906,2869.1,2868.9,2.34259]
[1644780080885,0.0174467,2869.1,2868.9,2.34259]
[1644780081083,0.0174467,2869.1,2868.9,2.51669]
[1644780081284,0.0251906,2869.1,2868.9,2.51669]
[1644780081485,0.0251906,2869.1,2868.9,0.1741]
[1644780081688,0.0251906,2869.1,2868.9,3.6741]
[1644780081884,0.0251906,2869.1,2868.9,4.2741]
[1644780082237,0.0174467,2869.1,2869.0,0.87147]
[1644780082429,0.0288874,2869.1,2869.0,1.04557]
[1644780082626,0.0288874,2869.1,2869.0,0.1741]
[1644780083428,0.0174467,2869.1,2869.0,0.1741]
[1644780084028,0.0174467,2869.1,2868.9,4.1]
[1644780084232,0.0174467,2869.1,2868.9,3.5]
[1644780084831,0.0288874,2869.1,2868.9,3.5]
[1644780085829,0.0174467,2869.1,2868.9,3.5]
[1644780086077,0.0298907,2869.1,2868.9,23.5]
[1644780086880,0.0298907,2869.1,2868.9,21.91723377]
[1644780087077,0.01845,2869.1,2868.9,21.91723377]
[1644780087282,0.0298907,2869.1,2868.9,21.91723377]
[1644780088080,0.01845,2869.1,2868.9,21.91723377]
[1644780088480,0.0261939,2869.1,2868.9,1.91723377]
[1644780089384,0.01845,2869.1,2868.9,1.91723377]
[1644780089581,0.0261939,2869.1,2868.9,1.91723377]
[1644780090231,0.0261939,2869.1,2868.9,2.78874377]
[1644780090631,0.01845,2869.1,2868.9,2.78874377]
[1644780090831,0.02989499,2869.1,2868.9,2.78874377]
[1644780091131,0.02989499,2869.1,2868.9,1.91723377]
[1644780091730,0.01845,2869.1,2868.9,1.91723377]
[1644780091934,0.02989499,2869.1,2868.9,1.91723377]
[1644780092733,0.02989499,2869.1,2868.9,2.78873377]
[1644780092932,0.01845,2869.1,2868.9,2.78873377]
[1644780093587,0.02989499,2869.1,2868.9,2.78873377]
[1644780093986,0.02989499,2869.1,2869.0,0.87153]
[1644780094187,0.01845,2869.1,2869.0,0.87153]
[1644780094386,0.02989499,2869.1,2869.0,0.87153]
[1644780095386,0.01845,2869.1,2869.0,0.87153]
[1644780100043,0.01845,2869.1,2868.9,2.78873377]
[1644780100244,0.01845,2869.1,2869.0,0.87152]
[1644780100447,0.01845,2869.1,2869.0,3.76258314]
[1644780100643,0.01845,2869.1,2869.0,3.81769134]
[1644780100844,0.01845,2869.1,2869.0,0.1741]
[1644780102491,0.01845,2869.1,2868.9,2.78881377]
[1644780102688,0.01845,2869.1,2868.9,1.91723377]
[1644780103990,0.02989499,2869.1,2868.9,1.91723377]
[1644780104188,0.02989499,2869.1,2868.9,2.78873377]
[1644780105042,0.01845,2869.1,2868.9,2.78873377]
[1644780105236,0.02989499,2869.1,2868.9,2.78873377]
[1644780105636,0.02989499,2869.1,2869.0,1.74277]
[1644780106238,0.01845,2869.1,2869.0,1.74277]
[1644780107036,0.01845,2869.1,2869.0,0.16011181]
[1644780107437,0.01845,2869.1,2868.9,2.78873377]
[1644780108587,0.01845,2869.1,2868.9,3.66022377]
[1644780108789,0.02989499,2869.1,2868.9,3.66022377]
[1644780109089,0.02989499,2869.1,2868.9,2.78873377]
[1644780109690,0.01845,2869.1,2868.9,2.78873377]
[1644780109888,0.01845,2869.1,2868.9,3.66023377]
[1644780110088,0.02989499,2869.1,2868.9,3.66023377]
[1644780110893,0.01845,2869.1,2868.9,3.66023377]
[1644780111292,0.02989499,2869.1,2868.9,3.66023377]
[1644780111692,0.02989499,2869.1,2868.9,3.66022377]
[1644780111891,0.02989499,2869.1,2868.9,1.91723377]
[1644780112938,0.02989499,2869.1,2868.9,2.78874377]
[1644780113335,0.01845,2869.1,2868.9,2.78874377]
[1644780113735,0.02989499,2869.1,2868.9,2.78874377]
[1644780114536,0.01845,2869.1,2868.9,2.78874377]
[1644780114737,0.01845,2869.1,2868.9,1.91723377]
[1644780114738,0.02989499,2869.1,2868.9,1.91723377]
[1644780114938,0.80535931,2869.0,2868.9,1.91723377]
[1644780115136,1.48345931,2869.0,2868.9,1.91723377]
[1644780115643,2.48452416,2869.0,2868.9,1.91723377]
[1644780115838,4.22839416,2869.0,2868.9,1.91723377]
[1644780116088,4.05429416,2869.0,2868.9,1.91723377]
[1644780116291,1.31035913,2869.0,2868.9,1.91723377]
[1644780116789,0.80635913,2869.0,2868.9,1.91723377]
[1644780116990,0.80635913,2869.0,2868.9,2.56636555]
[1644780120038,0.80635913,2869.0,2868.9,3.43785555]
[1644780120437,0.80635913,2869.0,2868.9,2.56636555]
[1644780123487,1.46063613,2869.0,2868.9,1.91723377]
[1644780123885,0.80635913,2869.0,2868.9,1.91723377]
[1644780124084,1.46450131,2869.0,2868.9,1.91723377]
[1644780124286,0.80635913,2869.0,2868.9,1.91723377]
[1644780124486,1.46449258,2869.0,2868.9,1.91723377]
[1644780125686,1.48445913,2869.0,2868.9,3.377e-05]
[1644780126086,1.49845913,2869.0,2868.9,3.377e-05]
[1644780126285,1.49745931,2869.0,2868.9,3.377e-05]
[1644780127086,0.00076623,2868.5,2868.3,1.09916812]
[1644780127340,0.00076623,2868.5,2868.4,0.66376197]
[1644780128336,0.80612554,2868.5,2868.2,0.01144744]
[1644780128535,2.55010554,2868.5,2868.3,0.66373202]
[1644780128739,0.80535931,2868.4,2868.3,0.66373202]
[1644780128938,0.80535931,2868.4,2867.6,1.2327]
[1644780129137,0.97965931,2868.4,2867.7,0.66319408]
[1644780129336,0.97965931,2868.4,2868.2,0.01144731]
[1644780129538,0.80535931,2868.3,2868.2,0.01144731]
[1644780130135,0.80535931,2868.3,2867.2,0.25]
[1644780130336,0.80535931,2868.3,2867.1,4.45056553]
[1644780130536,0.80535931,2868.3,2868.1,0.0114471]
[1644780131389,0.87213,2868.1,2867.5,1.09462426]
[1644780131585,0.80535931,2868.0,2867.6,0.63856824]
[1644780131784,0.80535931,2867.9,2867.2,0.25]
[1644780131983,0.1743,2868.2,2867.3,0.62945619]
[1644780131984,0.80535931,2867.8,2867.3,0.62945619]
[1644780132184,1.3764,2868.2,2867.3,0.62945619]
[1644780132585,1.03457372,2867.9,2867.4,0.62945619]
[1644780132785,2.57802201,2867.8,2867.6,0.01144775]
[1644780132989,0.83364201,2867.7,2867.6,0.01144775]
[1644780133186,1.51194201,2867.7,2867.6,0.01144775]
[1644780133384,1.51194201,2867.7,2867.6,4.775e-05]
[1644780133586,6.31514201,2867.7,2867.6,4.775e-05]
[1644780133784,6.31514201,2867.7,2866.6,0.6429809]
[1644780133988,0.87245,2867.4,2866.6,0.6429809]
[1644780134188,0.87244,2867.2,2866.6,0.6429809]
[1644780134584,2.00688008,2867.2,2866.6,0.6429809]
[1644780135235,2.00688008,2867.2,2866.8,0.01144884]
[1644780135434,2.87930008,2867.2,2866.8,0.01144884]
[1644780135632,0.87244,2867.1,2866.8,0.01144884]
[1644780135832,1.04684,2867.1,2866.8,0.01144884]
[1644780136233,0.81923236,2867.0,2866.4,0.05]
[1644780136437,4.30932236,2867.0,2866.8,0.01144878]
[1644780136638,0.1744,2866.9,2866.8,0.01144878]
[1644780136836,3.49009,2867.0,2866.8,0.01144878]
[1644780137037,1.745,2867.0,2866.8,0.01144878]
[1644780137236,6.99286005,2867.2,2866.8,0.01144878]
[1644780137435,0.87242,2867.0,2866.4,0.05]
[1644780137842,0.87242,2867.0,2866.8,0.01144884]
[1644780138237,0.87242,2867.0,2866.8,3.51144884]
[1644780138983,0.31259997,2867.2,2866.8,4.62990527]
[1644780139285,0.13819997,2867.2,2866.8,4.62990527]
[1644780139485,0.13819997,2867.3,2866.8,4.52906492]
[1644780139684,3.65026213,2867.7,2866.9,4.59061884]
[1644780139882,3.65026213,2867.7,2866.9,4.66642743]
[1644780139883,0.00086213,2867.7,2866.9,4.66642743]
[1644780140103,0.00086213,2867.7,2866.9,1.05784865]
[1644780140581,0.00086213,2867.7,2867.4,1.18323395]
[1644780141182,3.12244391,2868.4,2867.4,1.18323395]
[1644780141183,0.00083891,2868.1,2867.4,1.18323395]
[1644780141383,0.01228417,2868.1,2867.4,1.19468196]
[1644780141582,0.01228417,2868.1,2867.4,1.36898196]
[1644780142086,0.01228417,2868.1,2868.0,0.90487735]
[1644780142338,0.00083891,2868.1,2868.0,0.90487735]
[1644780142535,0.01228471,2868.1,2868.0,0.90487735]
[1644780142932,0.01228471,2868.1,2867.6,0.1743]
[1644780143135,0.01228471,2868.1,2867.6,1.0462]
[1644780143335,0.00083891,2868.1,2867.6,1.0462]
[1644780143536,0.00083891,2868.1,2867.6,0.1743]
[1644780143735,0.01228498,2868.1,2867.6,0.1743]
[1644780144234,0.01228498,2868.1,2867.7,1.00493787]
[1644780144438,0.00882966,2868.5,2867.7,1.00493787]
[1644780144635,0.77433065,2868.4,2867.7,1.00493787]
[1644780144836,0.77433065,2868.3,2867.7,1.00493787]
[1644780145034,0.1743,2868.5,2867.7,1.00493787]
[1644780145236,1.64634932,2868.4,2867.5,0.1743]
[1644780145536,0.94863932,2868.3,2867.1,0.1743]
[1644780145736,0.94863932,2868.3,2866.7,1.91852]
[1644780145737,0.77433932,2868.2,2866.7,1.91852]
[1644780145982,0.77433932,2868.1,2867.1,0.1743]
[1644780146184,0.77433932,2868.0,2866.8,0.1743]
[1644780146383,0.77433932,2868.0,2867.1,1.09868633]
[1644780146384,0.87217,2867.8,2867.1,1.09868633]
[1644780146988,0.87217,2868.0,2867.1,1.09868633]
[1644780147187,0.76414767,2867.9,2867.1,1.09868633]
[1644780147385,0.76414767,2867.9,2867.3,0.01144815]
[1644780147586,0.00064499,2867.2,2867.1,1.09868633]
[1644780147985,0.00064499,2867.2,2867.1,1.27298633]
[1644780148186,0.00064499,2867.2,2867.1,2.14494633]
[1644780148786,0.00064499,2867.2,2867.1,2.44494633]
[1644780149286,0.00064499,2867.2,2867.1,3.136921]
[1644780149746,0.00064499,2867.2,2867.1,10.26317728]
[1644780150036,0.00064499,2867.2,2867.1,6.336921]
[1644780150235,0.00064499,2867.2,2867.1,6.636921]
[1644780150836,0.00064499,2867.2,2867.1,10.25227469]
[1644780151037,0.00064499,2867.2,2867.1,6.636921]
[1644780151439,0.00064499,2867.2,2867.1,7.636921]
[1644780153342,0.00064499,2867.2,2867.1,32.21206135]
[1644780153593,0.0114444,2868.0,2867.2,4.7]
[1644780153892,0.0114444,2868.0,2867.5,1.74339]
[1644780154091,0.0114444,2868.0,2867.6,4.86512437]
[1644780154292,0.014,2869.0,2867.7,1.813092]
[1644780154595,0.01144601,2868.0,2867.8,0.69197467]
[1644780154793,0.01144601,2868.0,2867.9,0.1743]
[1644780154992,0.01144601,2868.0,2867.9,0.86627467]
[1644780155192,0.01144601,2868.0,2867.9,1.16627467]
[1644780155393,0.014,2869.0,2867.9,1.16627467]
[1644780155592,0.04577855,2868.5,2868.4,1.16986141]
[1644780155792,0.04577855,2868.5,2868.2,0.87173]
[1644780156593,0.04577855,2868.5,2867.9,2.04342]
[1644780156594,0.1743,2868.9,2867.9,2.04342]
[1644780156794,0.01144583,2868.5,2868.2,0.87175]
[1644780157634,0.03750336,2868.9,2868.3,0.88418358]
[1644780157836,0.75769242,2868.8,2868.4,0.87169]
[1644780158034,0.01144583,2868.5,2868.4,0.87169]
[1644780159135,0.014,2869.0,2868.3,0.88418358]
[1644780159136,0.1743,2868.8,2868.3,0.88418358]
[1644780159336,0.1743,2868.8,2868.3,0.887924]
[1644780159337,0.75867378,2868.7,2868.3,0.887924]
[1644780159738,0.75867378,2868.6,2868.3,0.887924]
[1644780159934,0.75867378,2868.5,2868.3,0.887924]
[1644780160135,0.75867378,2868.5,2868.3,0.88418358]
[1644780160336,0.1743,2868.9,2868.3,0.88418358]
[1644780160538,0.75867339,2868.8,2868.3,0.01144685]
[1644780160836,0.1743,2868.7,2868.3,3.51144685]
[1644780161092,0.75867339,2868.6,2868.3,3.51144685]
[1644780161493,0.75867339,2868.6,2868.3,3.5]
[1644780161692,0.75867339,2868.6,2868.3,3.51144685]
[1644780162693,0.75867339,2868.6,2868.3,3.5]
[1644780162893,0.75867339,2868.6,2868.3,3.51144685]
[1644780163697,0.1743,2868.5,2868.3,3.51144685]
[1644780163895,0.1743,2868.5,2868.3,3.5]
[1644780163896,0.75867339,2868.4,2868.3,3.5]
[1644780164094,0.75867339,2868.4,2868.3,3.51144685]
[1644780164496,0.75867339,2868.6,2868.3,3.51144685]
[1644780164757,5.0,2868.4,2868.3,4.685e-05]
[1644780164953,4.7,2868.3,2867.4,0.69564049]
[1644780165146,1.63093339,2868.2,2867.3,0.1743]
[1644780165346,0.93297339,2868.1,2867.4,0.70438942]
[1644780165547,0.75867339,2868.0,2867.4,0.70438942]
[1644780165845,1.63091339,2867.9,2867.4,1.71481827]
[1644780166047,1.7445,2868.1,2867.5,0.70438942]
[1644780166445,1.7445,2868.1,2867.5,0.70812233]
[1644780166645,0.75954307,2868.0,2867.5,0.70812233]
[1644780167452,0.75954307,2868.2,2867.5,0.70438942]
[1644780167745,0.75954307,2868.2,2867.9,0.91672683]
[1644780167949,1.14974776,2868.5,2867.7,0.87187]
[1644780167950,0.04003766,2867.8,2867.7,0.87187]
[1644780168150,0.04003766,2867.8,2867.7,1.76748568]
[1644780168347,0.04003766,2867.8,2867.7,0.89561568]
[1644780168791,0.04003766,2867.8,2867.7,0.72131568]
[1644780168993,0.04003766,2867.8,2867.7,1.10339573]
[1644780169692,0.04003766,2867.8,2867.7,1.8304185]
[1644780169892,0.04003766,2867.8,2867.7,0.72702277]
[1644780170098,0.04003766,2867.8,2867.6,0.01144776]
[1644780170495,0.76633083,2867.7,2867.6,0.01144776]
[1644780171094,0.76633083,2867.7,2867.3,0.99166807]
[1644780171295,0.76633083,2867.7,2867.5,0.01144789]
[1644780171697,0.04003766,2867.8,2867.5,0.01144789]
[1644780172341,0.04003766,2867.8,2867.3,3.5]
[1644780172539,0.04003766,2867.8,2867.5,0.01144789]
[1644780173339,0.04003766,2867.8,2867.3,3.5]
[1644780173537,0.04003766,2867.8,2867.4,0.70053819]
[1644780173738,0.04003766,2867.8,2867.5,0.01144789]
[1644780174339,0.91220766,2867.8,2867.5,0.01144789]
[1644780174740,0.76190487,2867.7,2867.3,3.5]
[1644780175040,0.76190487,2867.7,2867.5,0.01144789]
[1644780175246,0.93620487,2867.7,2867.5,0.01144789]
[1644780175440,0.76190487,2867.6,2867.5,0.01144789]
[1644780175842,0.76190487,2867.6,2867.3,4.64562372]
[1644780175843,0.76190487,2867.6,2867.3,3.5]
[1644780176086,0.76190487,2867.6,2867.4,0.01144802]
[1644780176889,1.82654422,2867.6,2867.4,0.01144802]
[1644780177086,1.82654422,2867.6,2867.3,3.5]
[1644780177087,0.76190487,2867.5,2867.3,3.5]
[1644780177287,0.76190487,2867.4,2867.3,3.5]
[1644780180137,0.87225,2867.7,2867.3,3.5]
[1644780180338,0.04003766,2867.8,2867.4,0.71697621]
[1644780180339,0.75048441,2867.6,2867.4,0.71697621]
[1644780180541,0.91222766,2867.8,2867.4,0.71697621]
[1644780180740,0.7503837,2867.7,2867.3,3.5]
[1644780180940,0.7503837,2867.7,2867.4,0.72841595]
[1644780181140,0.7503837,2867.7,2867.4,0.01144809]
[1644780181838,0.7503837,2867.7,2867.3,3.5]
[1644780182039,0.7503837,2867.7,2867.4,0.71745329]
[1644780182239,0.7503837,2867.7,2867.4,0.72890131]
[1644780182442,0.7503837,2867.7,2867.4,0.01144802]
[1644780182841,0.7503837,2867.7,2867.5,0.71755318]
[1644780183046,0.7503837,2867.7,2867.3,3.5]
[1644780183242,0.7503837,2867.7,2867.4,0.01144802]
[1644780183487,1.6225937,2867.7,2867.4,0.01144802]
[1644780183705,1.13955578,2867.5,2867.4,0.01144802]
[1644780183887,1.88993948,2867.5,2867.4,0.01144802]
[1644780184287,1.88993948,2867.5,2867.3,3.5]
[1644780184489,1.88993948,2867.5,2867.3,3.51144815]
[1644780184490,0.7503837,2867.4,2867.3,3.51144815]
[1644780184987,0.7503837,2867.4,2867.3,4.22948134]
[1644780185387,0.7503837,2867.7,2867.3,4.21803319]
[1644780185591,0.9246837,2867.7,2867.3,3.5]
[1644780185787,0.7503837,2867.6,2867.3,3.5]
[1644780186588,1.79053232,2867.6,2867.3,3.5]
[1644780186789,0.7503837,2867.5,2867.3,3.5]
[1644780186987,0.7503837,2867.5,2867.3,3.51144815]
[1644780187836,0.7503837,2867.5,2867.3,3.5]
[1644780188036,0.1743,2867.4,2867.3,1.91624158]
[1644780188238,0.9246837,2867.4,2867.3,1.9276898]
[1644780188438,0.7503837,2867.4,2867.3,1.9276898]
[1644780188636,0.9246837,2867.4,2867.3,1.9276898]
[1644780189037,1.7970037,2867.4,2867.3,1.91624158]
[1644780190538,1.6227037,2867.4,2867.3,1.91624158]
[1644780190985,4.61105052,2867.4,2867.3,1.91624158]
[1644780193188,4.61105052,2867.4,2867.3,4.158e-05]
[1644780193491,6.11505052,2867.4,2867.3,4.158e-05]
[1644780193695,12.07775824,2867.4,2867.3,4.158e-05]
[1644780193889,11.94655824,2867.4,2867.3,4.158e-05]
[1644780194288,11.28935052,2867.4,2867.3,4.158e-05]
[1644780194746,14.96505052,2867.4,2867.3,4.158e-05]
[1644780195139,18.20135052,2867.4,2867.3,4.158e-05]
[1644780195340,13.02705052,2867.4,2867.3,4.158e-05]
[1644780195538,13.68288769,2867.4,2867.3,4.158e-05]
[1644780195739,13.02705052,2867.4,2867.3,4.158e-05]
[1644780195939,13.02705052,2867.4,2866.4,0.05]
[1644780195940,0.87249,2867.3,2866.4,0.05]
[1644780196145,0.87249,2867.0,2866.4,0.05]
[1644780196339,1.6228737,2866.9,2866.4,0.05]
[1644780196541,1.93285644,2866.8,2866.7,0.01144489]
[1644780196740,2.8,2866.7,2866.4,0.01144489]
[1644780196942,2.35650674,2866.7,2866.4,0.01144489]
[1644780199892,2.42808684,2866.7,2866.4,0.01144489]
[1644780200492,0.7731338,2866.6,2866.4,0.01144489]
[1644780200692,2.98405871,2866.6,2866.4,0.01144489]
[1644780200896,0.7731338,2866.5,2866.4,0.01144489]
[1644780201093,2.98405871,2866.5,2866.4,0.01144489]
[1644780201292,2.21092491,2866.5,2866.4,0.02289024]
[1644780202345,2.21092491,2866.5,2866.4,0.01144489]
[1644780202541,2.27652314,2866.5,2866.4,0.01144489]
[1644780203639,2.27652314,2866.7,2866.4,0.01144489]
[1644780203839,0.77281558,2866.6,2866.4,0.01144489]
[1644780204046,3.04933872,2866.6,2866.4,0.01144489]
[1644780204240,2.27652314,2866.6,2866.4,0.01144489]
[1644780204440,2.81424225,2866.7,2866.4,0.01144489]
[1644780204940,0.76961549,2866.6,2866.4,0.02289024]
[1644780205241,1.94170225,2866.6,2866.4,0.02289024]
[1644780205740,2.81428225,2866.6,2866.4,0.02289024]
[1644780205987,2.81428225,2866.6,2866.4,0.01144489]
[1644780206187,2.81428225,2866.6,2866.4,0.02289024]
[1644780206188,0.7695925,2866.5,2866.4,0.02289024]
[1644780206387,1.94170225,2866.5,2866.4,3.32289024]
[1644780207191,2.71151201,2866.5,2866.4,3.31144489]
[1644780207391,1.94170225,2866.5,2866.4,3.31144489]
[1644780207991,1.94170225,2866.5,2866.4,1.72733636]
[1644780207992,5.23912165,2866.5,2866.4,1.72733636]
[1644780209197,1.94170225,2866.5,2866.4,1.72733636]
[1644780210241,2.68269857,2866.5,2866.4,1.72733636]
[1644780210438,1.94170225,2866.5,2866.4,1.72733636]
[1644780211945,2.68264337,2866.5,2866.4,1.72733636]
[1644780212140,5.26113749,2866.5,2866.4,1.72733636]
[1644780212443,3.31943524,2866.5,2866.4,1.72733636]
[1644780212642,4.0603394,2866.5,2866.4,1.72733636]
[1644780214292,5.88730862,2866.5,2866.4,1.72733636]
[1644780214501,6.06170862,2866.5,2866.4,1.72733636]
[1644780214891,6.56570862,2866.5,2866.4,1.72733636]
[1644780215294,6.39130862,2866.5,2866.4,1.72733636]
[1644780215792,6.56570862,2866.5,2866.4,1.72733636]
[1644780217246,3.24627338,2866.5,2866.4,1.72733636]
[1644780218445,3.24627338,2866.5,2866.3,0.01144541]
[1644780218446,1.77011276,2866.4,2866.3,0.01144541]
[1644780218642,4.33647589,2866.4,2866.3,0.01144541]
[1644780219042,4.33647589,2866.4,2865.9,0.0017363]
[1644780219443,1.61357416,2866.3,2866.2,0.01144554]
[1644780219646,3.43903313,2866.3,2866.2,0.01144554]
[1644780220244,3.43903313,2866.3,2865.4,0.0017363]
[1644780220445,3.43903313,2866.3,2865.4,0.67836073]
[1644780220446,1.61364416,2866.2,2865.4,0.67836073]
[1644780220646,2.60642028,2866.2,2866.1,0.01144567]
[1644780220846,3.39828247,2866.2,2866.1,0.01144567]
[1644780221496,1.06974825,2865.9,2865.4,0.0017363]
[1644780221797,2.80342853,2865.9,2865.6,0.04579008]
[1644780222094,3.67617853,2865.9,2865.7,0.65456657]
[1644780222595,1.73368028,2865.9,2865.7,0.65456657]
[1644780222796,1.53714398,2865.9,2865.7,0.65456657]
[1644780222995,1.53714398,2865.9,2865.8,0.65456657]
[1644780223596,0.91526284,2866.8,2866.1,0.99219031]
[1644780223796,0.8143264,2866.7,2866.2,0.65456657]
[1644780223996,2.35147038,2866.7,2866.2,0.6564574]
[1644780224196,2.35147038,2866.7,2866.3,0.01144541]
[1644780224197,0.8143264,2866.6,2866.3,0.01144541]
[1644780224396,0.8143264,2866.6,2866.3,0.01333624]
[1644780224597,0.91526284,2866.8,2866.3,0.01333624]
[1644780224598,0.8143264,2866.5,2866.3,0.01333624]
[1644780224852,0.8143264,2866.4,2866.3,0.01333624]
[1644780225351,0.8143264,2866.4,2865.9,0.1744]
[1644780225352,0.8143264,2866.4,2866.0,0.00189083]
[1644780225549,1.78776284,2866.8,2866.0,0.00189083]
[1644780225550,1.78776284,2866.8,2866.2,0.01144554]
[1644780225750,0.81286201,2866.7,2866.2,0.01144554]
[1644780226351,0.81286201,2866.7,2865.8,0.22207987]
[1644780226352,0.81286201,2866.7,2865.8,0.17629083]
[1644780226655,0.87258,2866.5,2866.3,0.01144541]
[1644780226852,0.81286201,2866.4,2866.3,0.01144541]
[1644780227651,0.81286201,2866.4,2865.9,0.00189083]
[1644780227851,0.81286201,2866.3,2866.2,0.01144554]
[1644780228493,0.81286201,2866.6,2866.2,0.66928063]
[1644780228695,0.81286201,2866.5,2866.3,0.65782169]
[1644780228995,0.81286201,2866.5,2866.1,0.01144567]
[1644780228996,0.72787899,2866.2,2866.1,0.01144567]
[1644780229394,0.87255,2866.6,2866.2,0.97212101]
[1644780229595,0.8005203,2866.5,2866.2,0.97403349]
[1644780229796,0.8005203,2866.5,2866.2,0.97212101]
[1644780229997,0.8005203,2866.4,2866.2,0.97212101]
[1644780230195,1.04694,2866.7,2866.3,0.67151461]
[1644780230397,0.80095772,2866.6,2866.2,0.98356655]
[1644780230596,0.80095772,2866.6,2866.3,0.6720644]
[1644780230797,0.97535772,2866.6,2866.3,0.6720644]
[1644780230996,0.80095772,2866.5,2866.2,0.98547903]
[1644780231196,1.84794772,2866.5,2866.2,0.97212101]
[1644780231396,0.80095772,2866.4,2866.2,0.97212101]
[1644780231595,0.80095772,2866.4,2866.3,0.01144541]
[1644780232246,1.67361772,2866.4,2866.3,0.01144541]
[1644780232442,1.67361772,2866.4,2866.2,0.97403349]
[1644780232644,0.80095772,2866.3,2866.2,0.98356655]
[1644780232840,0.80095772,2866.3,2866.2,1.64640244]
[1644780233443,0.80095772,2866.4,2866.2,1.64640244]
[1644780233642,0.80095772,2866.3,2866.2,0.97212101]
[1644780233843,0.1744,2866.5,2866.2,1.63496198]
[1644780233844,0.80095772,2866.4,2866.2,1.63496198]
[1644780234042,0.80095772,2866.4,2866.3,0.66284097]
[1644780234945,0.80095772,2866.4,2866.2,0.98547903]
[1644780235148,0.80095772,2866.4,2866.2,0.98356655]
[1644780235998,1.67360772,2866.4,2866.2,0.97212101]
[1644780236199,0.80095772,2866.3,2866.2,0.98356662]
[1644780236398,0.80095772,2866.3,2866.2,1.64686509]
[1644780236598,1.95589948,2866.3,2866.2,1.64686509]
[1644780237199,1.95589948,2866.3,2866.2,1.63541948]
[1644780237999,0.80095772,2866.3,2866.2,1.63541948]
[1644780238500,0.65583717,2866.7,2866.2,1.63541948]
[1644780238501,1.45679489,2866.7,2866.2,1.63541948]
[1644780238698,1.45679489,2866.7,2866.3,0.66329847]
[1644780238899,1.45679489,2866.7,2866.3,0.66521095]
[1644780239099,1.16660198,2866.6,2866.3,0.66521095]
[1644780239400,0.80095772,2866.5,2866.3,0.66521095]
[1644780239844,1.45679489,2866.5,2866.3,0.67665636]
[1644780240044,1.45679489,2866.5,2866.3,0.01335789]
[1644780240640,1.45679489,2866.5,2866.2,0.9354789]
[1644780240842,1.45679489,2866.5,2866.3,0.66357254]
[1644780241044,2.91177198,2866.6,2866.3,0.67501802]
[1644780241045,0.80095772,2866.4,2866.3,0.67501802]
[1644780241443,0.80095772,2866.5,2866.3,0.67501802]
[1644780241643,0.80095772,2866.4,2866.3,0.01144548]
[1644780241844,0.80095772,2866.5,2866.3,0.67531541]
[1644780242044,0.80095772,2866.4,2865.7,0.66736553]
[1644780242245,0.80095772,2866.3,2866.2,0.00372201]
[1644780242445,2.91177198,2866.6,2866.2,0.00372201]
[1644780242446,0.80095772,2866.5,2866.2,0.00372201]
[1644780242647,0.80095772,2866.4,2866.2,0.00372201]
[1644780242845,0.80095772,2866.3,2866.2,0.00372201]
[1644780243246,0.65583717,2866.4,2865.9,0.66396665]
[1644780243498,0.80095772,2866.3,2866.1,0.01144567]
[1644780243698,0.65583717,2866.5,2866.2,0.66396665]
[1644780243898,1.47019083,2866.5,2866.2,0.66396665]
[1644780244500,1.64459083,2866.5,2866.3,0.66396665]
[1644780244701,0.81435366,2866.4,2866.2,0.01144574]
[1644780244900,0.1744,2866.3,2866.2,0.01144574]
[1644780245100,1.86154366,2866.3,2866.2,0.01144574]
[1644780245399,1.68714366,2866.3,2866.2,0.01144574]
[1644780245602,1.68714366,2866.3,2865.7,0.00191252]
[1644780245799,0.92626068,2865.8,2865.7,0.00191252]
[1644780246002,1.74061434,2865.8,2865.5,0.66600261]
[1644780246201,0.92626068,2865.8,2865.6,0.66409009]
[1644780246400,0.82372544,2865.7,2865.5,0.00191252]
[1644780247000,0.82372544,2865.7,2865.5,0.66757363]
[1644780247251,1.69659544,2865.7,2865.6,0.65421459]
[1644780248043,0.82372544,2865.7,2865.6,0.65421459]
[1644780248444,0.82372544,2865.7,2865.5,0.01144645]
[1644780248643,0.82372544,2865.7,2865.6,0.65421459]
[1644780249144,1.79914068,2865.8,2865.6,0.65421459]
[1644780249344,1.79914068,2865.8,2865.7,0.65421459]
[1644780249544,1.69607863,2865.8,2865.7,0.65421459]
[1644780249949,1.69607863,2865.8,2865.6,0.65421459]
[1644780250146,0.87288,2865.8,2865.7,0.65421459]
[1644780250546,1.69622084,2865.8,2865.3,0.00191252]
[1644780250854,0.87288,2865.8,2865.6,0.01144639]
[1644780251293,0.87288,2865.8,2865.7,0.65402806]
[1644780251294,0.87285,2865.8,2865.7,0.65402806]
[1644780251492,1.69639443,2865.8,2865.7,0.65402806]
[1644780252092,0.82354443,2865.8,2865.7,0.65402806]
[1644780252595,0.99794443,2865.9,2865.7,0.65402806]
[1644780252792,0.82354443,2865.8,2865.7,0.65402806]
[1644780253195,0.84122883,2866.1,2865.7,0.65402806]
[1644780253400,0.84122883,2866.1,2865.7,1.70048187]
[1644780253598,0.84122883,2866.3,2865.8,0.82842806]
[1644780253895,0.85468812,2866.2,2865.9,1.64022348]
[1644780254095,0.66347579,2866.7,2866.0,0.65594058]
[1644780254096,0.85468812,2866.1,2866.0,0.65594058]
[1644780254295,0.01144299,2866.6,2866.1,0.00191252]
[1644780254496,0.85451455,2866.5,2866.1,0.65402806]
[1644780254751,0.85451455,2866.5,2866.2,0.65402806]
[1644780254941,0.85451455,2866.5,2866.3,0.65402806]
[1644780255140,0.85451455,2866.5,2866.4,1.50378097]
[1644780255441,7.80576752,2867.7,2866.4,1.50378097]
[1644780255442,1.53577579,2867.3,2866.6,4.25]
[1644780255641,0.66347579,2867.1,2866.7,0.7372558]
[1644780255840,0.66347579,2867.1,2866.7,1.6094258]
[1644780256243,0.66347579,2867.1,2866.7,2.4815958]
[1644780256442,0.66347579,2867.1,2866.7,0.7372558]
[1644780257243,0.66347579,2867.2,2866.7,0.7372558]
[1644780257444,0.66347579,2867.1,2866.7,0.7372558]
[1644780257644,0.66347579,2867.2,2866.7,0.7372558]
[1644780257845,0.66347579,2867.3,2866.7,0.7372558]
[1644780258045,1.83800471,2867.4,2866.7,0.7372558]
[1644780258496,1.83800471,2867.4,2866.9,0.96363886]
[1644780258497,0.66347579,2867.4,2866.9,0.96363886]
[1644780258702,0.66347579,2867.3,2866.7,1.6094458]
[1644780258998,0.66347579,2867.3,2866.7,0.7372558]
[1644780259199,0.66347579,2867.3,2866.7,1.6094158]
[1644780259200,0.00773141,2867.2,2866.7,1.6094158]
[1644780259499,0.00773141,2867.2,2866.7,1.7838158]